Cogmind - Beta 13 @@@ ROGUE MODE // 2024.06.17 @ 08:30:43 Player: Gimcond Result: Self-destructed Performance ------------- Evolutions (1) 500 Regions Visited (3) 600 Robots Destroyed (24) 120 Value Destroyed (631) 631 Prototype IDs (0) 0 Alien Tech Used (0) 0 Bonus (0) 0 TOTAL SCORE: 1851 Bonus ------- None Cogmind --------- Core Integrity 109/400 Matter 300/300 Energy 250/250 System Corruption 0% Temperature Cool (0) Movement Walking (120) Location -9/Storage Parts ------- > --- POWER (1) -------- Ion Engine > --- PROPULSION (3) --- Aluminum Leg Aluminum Leg > --- UTILITY (3) ------ Small Storage Unit Medium Storage Unit > --- WEAPON (2) ------- (None) > --- INVENTORY (10) --- Ion Engine Light Treads Light Treads Aluminum Leg Aluminum Leg Aluminum Leg Peak State ------------ > --- POWER ------------ Light Ion Engine > --- PROPULSION ------- Aluminum Leg Aluminum Leg Aluminum Leg > --- UTILITY ---------- Medium Storage Unit Improved Terrain Scanner > --- WEAPON ----------- Assault Rifle Light Assault Rifle > --- INVENTORY -------- Light Ion Engine Light Treads Light Treads Aluminum Leg Small Storage Unit [Rating: 10] Favorites ----------- Power Light Ion Engine Engine Light Ion Engine Propulsion Aluminum Leg Leg Aluminum Leg Utility Medium Storage Unit Device Improved Terrain Scanner Storage Medium Storage Unit Weapon Light Assault Rifle Energy Gun Particle Gun Ballistic Gun Light Assault Rifle Build | -11 -10 -9 -9 ------- Run | Yrd Mat Mat Sto Slots Evolved 2 | . . 2 . Power . | . . . . Propulsion 1 | . . 1 . Utility 1 | . . 1 . Weapon . | . . . . Parts Attached 23 | 7 2 1 13 Power 5 | 1 1 . 3 Engine 5 | 1 1 . 3 Core . | . . . . Reactor . | . . . . Propulsion 9 | 2 . 1 6 Treads . | . . . . Leg 9 | 2 . 1 6 Wheel . | . . . . Hover . | . . . . Flight . | . . . . Utility 4 | 2 1 . 1 Device 1 | 1 . . . Storage 3 | 1 1 . 1 Processor . | . . . . Hackware . | . . . . Protection . | . . . . Artifact . | . . . . Weapon 5 | 2 . . 3 Energy Gun 3 | . . . 3 Energy Cannon . | . . . . Ballistic Gun 2 | 2 . . . Ballistic Cannon . | . . . . Launcher . | . . . . Special Weapon . | . . . . Impact Weapon . | . . . . Slashing Weapon . | . . . . Piercing Weapon . | . . . . Special Melee Weapon . | . . . . Unidentified Prototypes . | . . . . Parts Lost 13 | . 1 1 11 Power 4 | . 1 . 3 Propulsion 5 | . . . 5 Utility 1 | . . 1 . Weapon 3 | . . . 3 Highest Loss Streak 4 | . 1 1 4 To Critical Strikes . | . . . . Average Slot Usage (%) 81 | . 95 88 74 Engine 10 | . 9 11 10 Leg 29 | . 28 33 30 Device 4 | . 14 11 . Storage 15 | . 14 11 15 Energy Gun 3 | . . . 5 Ballistic Gun 17 | . 28 22 11 Naked Turns . | . . . . Heaviest Build 24 | 12 17 17 24 Greatest Support 30 | 20 20 30 30 Greatest Overweight (x) 1 | 1 . . 1 Average Overweight (x) . | . . . . Largest Inventory Capacity 10 | 8 10 10 10 Average Capacity 9 | 7 9 10 10 Most Carried 8 | 5 6 6 8 Average Carried 5 | 2 4 5 6 Final Capacity 10 | 8 10 10 10 Final Carried 6 | 3 6 6 6 Class Distribution -------------------- 100% | Mutant Dominant Class ---------------- Mutant | -10/Materials Mutant | -9/Materials Mutant | -9/Storage Resources | -11 -10 -9 -9 ----------- Run | Yrd Mat Mat Sto Matter Collected 667 | 323 138 . 206 Remotely . | . . . . Salvage Created 845 | 71 202 32 540 Parts 63 | 13 13 2 35 Haulers Intercepted . | . . . . Recyclers Shooed . | . . . . Parts Field Recycled . | . . . . Retrieved Matter . | . . . . Parts Self-Destructed . | . . . . Prevented . | . . . . Kills | -11 -10 -9 -9 ------- Run | Yrd Mat Mat Sto Combat Hostiles Destroyed 18 | . 6 1 11 Guns 18 | . 6 1 11 Classes Destroyed 6 | 2 3 . 1 Worker 1 | 1 . . . Builder 2 | . 1 . 1 Tunneler 3 | 3 . . . Swarmer 3 | . 3 . . Grunt 12 | . 3 1 8 Sentry 3 | . . . 3 Best Kill Streak 3 | 2 3 1 3 Combat Bots Only 3 | . 3 1 3 Max Kills in Single Turn 1 | 1 1 1 1 Gunslinging . | . . . . Exploded . | . . . . Melee . | . . . . Uniques/NPCs Destroyed . | . . . . Combat | -11 -10 -9 -9 -------- Run | Yrd Mat Mat Sto Hostile Shots Fired 200 | . 62 10 128 Missed 54 | . 20 5 29 Damage Taken 1778 | . 378 48 1352 Core 379 | . 88 . 291 Absorbed by Shields . | . . . . Core Remaining (%) 82 | 100 64 . . Volleys Fired 113 | 15 29 3 66 Largest 2 | 2 2 2 2 Hottest 105 | 40 40 40 105 Shots Fired 194 | 30 58 6 100 Gun 194 | 30 58 6 100 Cannon . | . . . . Launcher . | . . . . Special . | . . . . Kinetic 149 | 30 58 6 55 Thermal 45 | . . . 45 Explosive . | . . . . Electromagnetic . | . . . . Robot Hit Streak 14 | 4 6 4 14 Robot Miss Streak 4 | 4 4 1 3 Penetration Max . | . . . . Secondary Targets 1 | . . . 1 Max Gunslinging Chain 1 | . . . 1 Shots Hit Robots 124 | 13 34 5 72 Core Hits 50 | 4 11 2 33 Critical Kills 1 | . . . 1 Critical Parts Destroyed . | . . . . Critical Strikes 2 | . . . 2 Burn 1 | . . . 1 Destroy 1 | . . . 1 Melee Attacks . | . . . . Impact . | . . . . Slashing . | . . . . Piercing . | . . . . Sneak Attacks . | . . . . Combat Hostiles . | . . . . Follow-up Attacks . | . . . . Damage Inflicted 1466 | 167 367 50 882 Guns 1449 | 167 367 50 865 Cannons . | . . . . Explosions . | . . . . Melee . | . . . . Ramming 17 | . . . 17 Kinetic 1036 | 167 367 50 452 Thermal 413 | . . . 413 Explosive . | . . . . Electromagnetic . | . . . . Impact . | . . . . Slashing . | . . . . Piercing . | . . . . Highest Corruption . | . . . . Average Corruption . | . . . . Corruption Purged . | . . . . Corruption Blocked . | . . . . Overload Shots . | . . . . Overflow Damage . | . . . . Projectiles . | . . . . Explosions . | . . . . Melee . | . . . . Knockbacks . | . . . . Impact . | . . . . Kinetic . | . . . . Secondary . | . . . . Self-Inflicted Damage . | . . . . Shots . | . . . . Rammed . | . . . . Targets Rammed 3 | . . . 3 Kicked 3 | . . . 3 Crushed . | . . . . Highest Temperature 444 | . 7 3 444 Average Temperature 137 | . 2 3 149 Received Heat Transfer 870 | . 114 18 738 Effects 6 | . . . 6 Shutdowns 2 | . . . 2 Energy Bleed 2 | . . . 2 Interference 2 | . . . 2 Siege Activations . | . . . . Robots Corrupted . | . . . . Combat Hostiles . | . . . . Parts Fried . | . . . . Impact Corruptions . | . . . . Robots Melted . | . . . . Combat Hostiles . | . . . . Parts Melted 4 | . . . 4 Heat Transferred 1040 | . . . 1040 Parts Sabotaged . | . . . . Parts Stolen . | . . . . Parts Stripped . | . . . . Power Chain Reactions . | . . . . Alert | -11 -10 -9 -9 ------- Run | Yrd Mat Mat Sto Peak Influence 192 | 20 192 100 172 Initial 80 | . 13 80 37 Average 81 | 9 103 88 91 Maximum Alert Level . | . . . . Low Security (%) 100 | 100 100 100 100 Level 1 . | . . . . Level 2 . | . . . . Level 3 . | . . . . Level 4 . | . . . . Level 5 . | . . . . High Security . | . . . . Max Security . | . . . . Squads Dispatched 3 | . 2 . 1 Investigation 2 | . 1 . 1 Extermination . | . . . . Reinforcement 1 | . 1 . . Assault . | . . . . Garrison . | . . . . Intercept . | . . . . Searches Triggered . | . . . . Construction Impeded . | . . . . Haulers Reinforced . | . . . . Active Scanning Responses . | . . . . Cargo Convoy Interrupts . | . . . . Stealth | -11 -10 -9 -9 --------- Run | Yrd Mat Mat Sto Distress Signals 2 | . 2 . . Communications Jammed . | . . . . Distress Signals . | . . . . Times Spotted 31 | . 9 6 16 Peak Tracking Total 6 | . 4 6 5 Tactical Retreats . | . . . . Traps | -11 -10 -9 -9 ------- Run | Yrd Mat Mat Sto Traps Triggered 2 | . 1 . 1 Indirectly . | . . . . Trap Hack Attempts . | . . . . Triggered . | . . . . Disarmed . | . . . . Reprogrammed . | . . . . Reused . | . . . . Traps Extracted . | . . . . Installed . | . . . . Triggered . | . . . . Machines | -11 -10 -9 -9 ---------- Run | Yrd Mat Mat Sto Machines Disabled . | . . . . Max in Single Turn . | . . . . Machines Repaired . | . . . . Machines Dismantled . | . . . . Machines Sabotaged . | . . . . Overloaded Fab Kills . | . . . . Hacking | -11 -10 -9 -9 --------- Run | Yrd Mat Mat Sto Machines Accessed 5 | . 3 . 2 Terminals 5 | . 3 . 2 Fabricators . | . . . . Repair Stations . | . . . . Recycling Units . | . . . . Scanalyzers . | . . . . Garrison Access . | . . . . Total Hacks 6 | . 4 . 2 Successful 4 | . 3 . 1 Failed 2 | . 1 . 1 Catastrophic . | . . . . Database Lockouts . | . . . . Manual 6 | . 4 . 2 Terminals 6 | . 4 . 2 Fabricators . | . . . . Repair Stations . | . . . . Recycling Units . | . . . . Scanalyzers . | . . . . Garrison Access . | . . . . Terminal Hacks . | . . . . Fabricator Hacks . | . . . . Repair Station Hacks . | . . . . Recycling Unit Hacks . | . . . . Scanalyzer . | . . . . Garrison Access Hacks . | . . . . Unauthorized Hacks 4 | . 3 . 1 Terminals 4 | . 3 . 1 Botnet 4 | . 3 . 1 Fabricators . | . . . . Repair Stations . | . . . . Recycling Units . | . . . . Scanalyzers . | . . . . Garrison Access . | . . . . Data Cores Recovered . | . . . . Used . | . . . . Hacking Detections 2 | . 1 . 1 Full Trace Events . | . . . . Feedback Events . | . . . . Feedback Blocked . | . . . . Robot Schematics Acquired . | . . . . Robots Built . | . . . . Authchips . | . . . . Time . | . . . . Total Robot Build Rating . | . . . . Part Schematics Acquired . | . . . . Parts Built . | . . . . Authchips . | . . . . Time . | . . . . Total Part Build Rating . | . . . . Parts Repaired . | . . . . Time . | . . . . Parts Recycled . | . . . . Recycled Matter . | . . . . Retrieved Matter . | . . . . Retrieved Components . | . . . . Parts Scanalyzed . | . . . . Part Schematics Acquired . | . . . . Parts Damaged . | . . . . Bothacking | -11 -10 -9 -9 ------------ Run | Yrd Mat Mat Sto Used RIF Installer . | . . . . Robots Hacked . | . . . . Non-combat . | . . . . Combat . | . . . . Robot Hacks Applied . | . . . . Relay Couplers Released . | . . . . Fabnet Peak Effective % . | . . . . Robots Rewired . | . . . . Allies Hacked . | . . . . Hacks Repelled . | . . . . Allies | -11 -10 -9 -9 -------- Run | Yrd Mat Mat Sto Total Allies . | . . . . Largest Group . | . . . . Highest-Rated Group . | . . . . Highest-Rated Ally . | . . . . Total Orders . | . . . . Ally Attacks . | . . . . Total Damage . | . . . . Kills . | . . . . Allies Corrupted . | . . . . Allies Melted . | . . . . Intel | -11 -10 -9 -9 ------- Run | Yrd Mat Mat Sto Robot Analysis Total . | . . . . Derelict Logs Recovered . | . . . . Drone Launches . | . . . . Drone Recoveries . | . . . . Exploration | -11 -10 -9 -9 ------------- Run | Yrd Mat Mat Sto Turns Passed 1275 | 209 341 41 684 Spaces Moved 765 | 129 210 26 400 Core 15 | 15 . . . Treads . | . . . . Legs 750 | 114 210 26 400 Wheels . | . . . . Hover . | . . . . Flight . | . . . . Fastest Speed 50 | 50 120 120 120 Average Speed 121 | 116 120 120 123 Slowest Speed 190 | 120 120 120 190 Overloaded Moves . | . . . . Propulsion Burnouts . | . . . . Robots Hopped . | . . . . Cave-ins Triggered . | . . . . Exploration Rate (%) 20 | 6 19 3 55 Regions Visited 3 Branch Regions 1 Pre-discovered Areas . | . . . . Known Exits Taken . | . . . . Unknown Exits Taken 3 | 1 1 1 . Scrap Searched . | . . . . Spaces Dug . | . . . . Terrain Destroyed . | . . . . Melee . | . . . . Projectile . | . . . . AOE . | . . . . Terrain Rammed . | . . . . Walls Destroyed . | . . . . Machines Disabled . | . . . . Actions | -11 -10 -9 -9 --------- Run | Yrd Mat Mat Sto Total 935 | 160 246 30 499 Wait 2 | . 2 . . Move 762 | 128 209 25 400 Hop . | . . . . Pick Up 28 | 10 4 1 13 Fast Attach . | . . . . Attach 21 | 7 1 1 12 Detach . | . . . . Swap 2 | . 1 . 1 Drop 4 | . . . 4 Fire 113 | 15 29 3 66 Melee . | . . . . Ram . | . . . . Kick 3 | . . . 3 Crush . | . . . . Escape Stasis . | . . . . Rewire . | . . . . Trap . | . . . . Miscellaneous . | . . . . Route ------- -11/Scrapyard -10/Materials (discovered 2 exits: [*Mat] / [Sub]) -9/Materials -9/Storage History --------- Turn | Location | Event 7 | -11/Scrapyard | Discovered new exit (range 16) 210 | -11/Scrapyard | Entered Materials 322 | -10/Materials | Build established: Mutant 334 | -10/Materials | Discovered new exit (range 9) 413 | -10/Materials | Discovered new exit (range 15) 551 | -10/Materials | Entered another Materials area 551 | -9/Materials | Evolved 2 slots: Propulsion x1, Utility x1 564 | -9/Materials | Discovered new exit (range 11) 592 | -9/Materials | Entered Storage 973 | -9/Storage | Lost 4 parts (1p2n1w) 988 | -9/Storage | Core integrity fell below 50% 1276 | -9/Storage | Self-destructed Last Messages --------------- >>Trojan(Botnet) Trojan loaded successfully. Testing... Terminal linked with 0 systems. Awaiting botnet instructions. 01166_ Heat Sink melted. 01166_ Y-45 Defender destroyed. 01169_ R-06 Scavenger collects Beam Rifle. 01171_ Critical hit (Burn: +37). 01171_ Ion Engine destroyed. 01173_ R-06 Scavenger collects Lgt. Treads. 01177_ Critical hit (Burn: +37). 01179_ Aluminum Leg destroyed. 01200_ Acquired 10 matter. 01205_ Acquired Ion Engine. 01222_ Particle Gun destroyed. 01222_ Critical hit (Burn: +37). 01226_ Kicked K-01 Serf out of the way. 01262_ K-01 Serf collects debris. 01274_ Aluminum Leg destroyed. Map ----- +----------------------------------------------------+ | = #???# | | =% ###############+##/######################???# | | # #######?????# #???????????????????????# | | # #? ??????# #???????????????????????? | | # # ????????# """"" #???????????????????????? | | # # "?????????# "???" #???????????????????????? | | # + "?????????# ""??" #???????????????????????? | | # =%# "?????????# "??"" #????? ???????????????? | | # #???????????# "???" #????# +??????????????? | | # #???????????# """"" #????# #???????????#### | | # #???????????# #????# #???????????# | | # #???????????##########????# #???????????# | | # ####??????????????????????# ##########??# | | # """#??????????????????????# #? ???# ## | | # G"#??????????????????????# #? ???# #? | | # """#??????????????????????# #?? """ ????# #? | | # ####??????????????????????# #?? """ ????# ## | | # #?????????????????????????# #???"""?????#%## | | # #?????????????????????????# #??? ??#### ## | | # #?????????????????????????# #####+#### # | | # #?????????????????????????+ # | | # #?????????????????????????# *% / | | # #?????????????????????????# # | | # ###########??########?????# #######+#### # | | # #^ """"" #??# #######Y#????? ??## ## | | # # """"" #?## """" /@ #????? ???# ## | | # + """"" #?# """" # #????""" ??# #? | | # # #?## """" # k## """ ??# #? | | # # #??# """" + Y """ T?# #? | | # # ^ #??# ####+##+## """ #?# +? | | # # ! #??##"T"###?? #? """ #?# #? | | # # #???#"""????? #? #?# +? | | ######" ""#####???####????# """ #???? #?# #? | | ?????#"R""#???????????????# """ #?????####?# #? | | ?????#""""#???????????????# """ #???????????#+##? | | ?????######??????????????? #???????????????? | | ??????????????????????????##"T"###???????????????? | | ??????????????????????????????#??????????????????? | | ?????????????????????????????????????????????????? | | ?????????????????????????????????????????????????? | | ?????????????????????????????????????????????????? | | ?????????????????????????????????????????????????? | | ?????????????????????????????????????????????????? | | ?????????????????????????????????????????????????? | | ?????????????????????????????????????????????????? | | ?????????????????????????????????????????????????? | | ?????????????????????????????????????????????????? | | | | | | | +----------------------------------------------------+ Best States ------------- Heat Dissipation 28 Energy Generation 10 Energy Capacity 250 Matter Stores 300 Matter Capacity 300 Sight Range 16 Terrain Scan Range 16 Terrain Scan Density 10 Evasion (%) 55 Item Schematics ----------------- None Robot Schematics ------------------ None Fabricated ------------ Nothing Alien Tech Used ----------------- None Achievements -------------- None Challenges ------------ None Game ------ Seed LightningStealthAutohacker Manual? 0 Play Time 00:15:27 Cumulative 9.6 hours Start 2024.06.17 @ 08:17:32 End 2024.06.17 @ 08:30:43 Sessions 1 Manual Loads 0 Difficulty Rogue Special Mode None Game No. 26 Rogue 26 Adventurer 0 Explorer 0 Win Type - Total 0 Types 0/0/0/0/0/0/0/0/0 Lore% 16 Gallery% 15 Achievement% 16 Wizard Run 0 Options --------- Layout 1 ASCII 1 Keyboard 0 Movement Arrows Keybinds 0 Fullscreen 1 Font 24/Smallcaps Map View 50x35 Zoom Use 0% Tactical HUD 1 Map Filters NONE Filters NONE Steam 1 RUN: 7ca7d2a5-373a-497e-a597-5180a6361b96